bitfinex-derivatives/quotes_BTCF0:USTF0_20251125
["timestamp","ask_amount","ask_price","bid_price","bid_amount"]
[1764043725739,0.52131803,88051.0,88050.0,0.05748267]
[1764043725939,0.34219803,88051.0,88050.0,0.05748267]
[1764043728937,0.34219803,88051.0,88050.0,0.06884377]
[1764043729137,0.08219803,88051.0,88050.0,0.06884377]
[1764043729847,0.30219803,88051.0,88050.0,0.05748267]
[1764043735452,0.00219803,88051.0,88050.0,0.05748267]
[1764043737453,0.00219803,88051.0,88050.0,0.11873896]
[1764043738853,0.01219803,88051.0,88050.0,0.11873896]
[1764043739355,0.41219803,88051.0,88050.0,0.05748267]
[1764043740655,0.77299803,88051.0,88050.0,0.04484117]
[1764043741158,0.77299803,88051.0,88050.0,0.05807267]
[1764043741456,0.77299803,88051.0,88050.0,0.03648267]
[1764043741660,0.77299803,88051.0,88050.0,0.00073267]
[1764043741852,0.0113611,88050.0,88049.0,0.0439]
[1764043742059,0.34355913,88050.0,88049.0,0.04463267]
[1764043743152,0.34455913,88050.0,88049.0,0.02304267]
[1764043743658,0.34355913,88050.0,88049.0,0.04463267]
[1764043744456,0.26267913,88050.0,88049.0,0.04463267]
[1764043744856,0.25131803,88050.0,88049.0,0.04463267]
[1764043745056,0.00219803,88050.0,88049.0,0.04463267]
[1764043745254,0.18131803,88050.0,88049.0,0.04463267]
[1764043745459,0.00219803,88050.0,88049.0,0.04463267]
[1764043745660,0.00219803,88050.0,88049.0,0.40543267]
[1764043745860,0.0113591,88066.0,88062.0,0.01311]
[1764043746063,0.0113591,88066.0,88062.0,0.05701]
[1764043746064,0.00219803,88063.0,88062.0,0.05701]
[1764043746263,0.30219803,88063.0,88062.0,0.05774267]
[1764043747159,0.01219803,88063.0,88062.0,0.05774267]
[1764043747756,0.00219803,88063.0,88062.0,0.05774267]
[1764043747960,0.24219803,88063.0,88062.0,0.05774267]
[1764043748868,0.24319803,88063.0,88062.0,0.05774267]
[1764043749569,0.42231803,88063.0,88062.0,0.05774267]
[1764043754262,0.42131803,88063.0,88062.0,0.05774267]
[1764043759467,0.42127803,88063.0,88062.0,0.05774267]
[1764043763475,0.24,88063.0,88062.0,0.41854267]
[1764043763685,0.3608,88087.0,88076.0,0.0538977]
[1764043763686,0.40338,88077.0,88076.0,0.0538977]
[1764043763976,0.04477803,88077.0,88076.0,0.04327267]
[1764043764164,0.43477803,88077.0,88076.0,0.00073267]
[1764043764472,0.43477803,88077.0,88076.0,0.02182267]
[1764043764778,0.43677803,88077.0,88076.0,0.02182267]
[1764043765074,0.43677803,88077.0,88076.0,0.04327267]
[1764043765265,0.43677803,88077.0,88076.0,0.07384674]
[1764043766571,0.18677803,88077.0,88076.0,0.04327267]
[1764043766773,0.02569803,88077.0,88076.0,0.04327267]
[1764043766979,0.002,88077.0,88076.0,0.04327267]
[1764043767872,0.00419803,88077.0,88076.0,0.04327267]
[1764043768073,0.05813563,88077.0,88076.0,0.04327267]
[1764043768274,0.04677803,88077.0,88076.0,0.04327267]
[1764043770373,0.04677803,88077.0,88076.0,0.07382167]
[1764043771177,0.04677803,88077.0,88076.0,0.04327267]
[1764043771378,0.04677803,88077.0,88076.0,0.0738221]
[1764043772287,0.04677803,88077.0,88076.0,0.04327267]
[1764043772486,0.04677803,88077.0,88076.0,0.05463037]
[1764043772688,0.04677803,88077.0,88076.0,0.04327267]
[1764043774779,0.49677803,88077.0,88076.0,0.02182267]
[1764043774981,0.49677803,88077.0,88076.0,0.05238665]
[1764043775193,0.49677803,88077.0,88076.0,0.07383665]
[1764043776091,0.04677803,88077.0,88076.0,0.05463037]
[1764043776590,0.04677803,88077.0,88076.0,0.04327267]
[1764043780588,0.05813563,88077.0,88076.0,0.04327267]
[1764043780784,0.47813563,88077.0,88076.0,0.04327267]
[1764043781392,0.16677803,88077.0,88076.0,0.05463037]
[1764043783504,0.35677803,88077.0,88076.0,0.04327267]
[1764043784595,0.10677803,88077.0,88076.0,0.04327267]
[1764043785100,0.04677803,88077.0,88076.0,0.04327267]
[1764043786500,0.002,88077.0,88076.0,0.07384139]
[1764043786703,0.002,88077.0,88076.0,0.04327267]
[1764043791301,0.002,88077.0,88076.0,0.10444474]
[1764043792300,0.002,88077.0,88076.0,0.04327267]
[1764043795401,0.00028382,88086.0,88085.0,0.0698366]
[1764043795607,0.00028382,88086.0,88085.0,0.07056927]
[1764043796205,0.02296382,88086.0,88085.0,0.07056927]
[1764043796509,0.00128382,88086.0,88085.0,0.07056927]
[1764043796909,0.00228382,88086.0,88085.0,0.07056927]
[1764043801204,0.04659382,88086.0,88085.0,0.07056927]
[1764043801407,0.04659382,88086.0,88085.0,0.04551267]
[1764043801607,0.04879185,88086.0,88085.0,0.04551267]
[1764043802212,0.04879185,88086.0,88085.0,0.05686927]
[1764043802401,0.04879185,88086.0,88085.0,0.06983927]
[1764043802605,0.04659382,88086.0,88085.0,0.06983927]
[1764043803205,0.05795032,88086.0,88085.0,0.06983927]
[1764043803400,0.30014835,88086.0,88085.0,0.02363267]
[1764043803714,0.30014835,88086.0,88085.0,0.00073267]
[1764043805411,0.31346835,88086.0,88085.0,0.00073267]
[1764043808404,0.31346835,88086.0,88085.0,0.02202267]
[1764043808916,0.31346835,88086.0,88085.0,0.00073267]
[1764043810418,0.49250835,88086.0,88085.0,0.00073267]
[1764043810602,0.49250835,88086.0,88085.0,0.0313254]
[1764043811411,0.31346835,88086.0,88085.0,0.0313254]
[1764043811713,0.49250835,88086.0,88085.0,0.02264267]
[1764043812504,0.46783185,88086.0,88085.0,0.07025927]
[1764043812720,0.44677185,88086.0,88085.0,0.07025927]
[1764043812908,0.46787185,88086.0,88085.0,0.07025927]
[1764043813310,0.04883185,88086.0,88085.0,0.07025927]
[1764043813810,0.08883185,88086.0,88085.0,0.07025927]
[1764043814006,0.04883185,88086.0,88085.0,0.04597267]
[1764043814715,0.06018835,88086.0,88085.0,0.04597267]
[1764043815513,0.04883185,88086.0,88085.0,0.04597267]
[1764043816318,0.04883185,88086.0,88085.0,0.05890267]
[1764043817114,0.04883185,88086.0,88085.0,0.04597267]
[1764043817617,0.45883185,88086.0,88085.0,0.04597267]
[1764043818817,0.45883185,88086.0,88085.0,0.02264267]
[1764043819011,0.45883185,88086.0,88085.0,0.00073267]
[1764043819820,0.45883185,88086.0,88085.0,0.02264267]
[1764043820242,0.45883185,88086.0,88085.0,0.00073267]
[1764043822020,0.45883185,88086.0,88085.0,0.02264267]
[1764043822215,0.45883185,88086.0,88082.0,0.0407788]
[1764043822417,0.04419,88083.0,88082.0,0.0407788]
[1764043822618,0.45638803,88083.0,88082.0,0.0407788]
[1764043823020,0.19638803,88083.0,88082.0,0.04151147]
[1764043823217,0.42638803,88083.0,88082.0,0.04151147]
[1764043824920,0.04419,88080.0,88077.0,0.00017035]
[1764043825120,0.04419,88080.0,88060.0,0.08310601]
[1764043825121,0.0233397,88061.0,88060.0,0.08310601]
[1764043825326,0.92401803,88061.0,88060.0,0.04597267]
[1764043825522,0.19321803,88061.0,88060.0,0.04597267]
[1764043827819,0.00219803,88061.0,88060.0,0.04597267]
[1764043828218,0.00818803,88061.0,88060.0,0.04597267]
[1764043829528,0.43553773,88061.0,88060.0,0.00073267]
[1764043829721,0.02553773,88061.0,88060.0,0.00073267]
[1764043829917,0.17553773,88061.0,88060.0,0.04597267]
[1764043831025,0.17553773,88061.0,88060.0,0.04697267]
[1764043831629,0.02553773,88061.0,88060.0,0.04697267]
[1764043832126,0.44553773,88061.0,88060.0,0.04697267]
[1764043833328,0.04553773,88061.0,88060.0,0.04697267]
[1764043833731,0.47553773,88061.0,88060.0,0.05420365]
[1764043833929,0.83633773,88061.0,88060.0,0.02364267]
[1764043834529,0.49633773,88061.0,88060.0,0.04697267]
[1764043835232,0.36898803,88061.0,88060.0,0.07753365]
[1764043837331,0.36898803,88061.0,88060.0,0.04697267]
[1764043838035,0.38633773,88061.0,88060.0,0.07753365]
[1764043839226,0.37497803,88061.0,88060.0,0.07753365]
[1764043839432,0.00818803,88061.0,88060.0,0.04697267]
[1764043839735,0.00219803,88061.0,88060.0,0.04697267]
[1764043839930,0.01417803,88061.0,88060.0,0.04697267]
[1764043840631,0.00818803,88061.0,88060.0,0.04697267]
[1764043841136,0.00219803,88061.0,88060.0,0.04697267]
[1764043841726,0.19106,88068.0,88067.0,0.0555489]
[1764043842029,0.01417803,88068.0,88067.0,0.05628157]
[1764043842536,0.00219803,88068.0,88067.0,0.05628157]
[1764043843440,0.00219803,88068.0,88063.0,0.02189]
[1764043843441,0.0233393,88064.0,88063.0,0.02189]
[1764043843738,0.40553733,88064.0,88063.0,0.02262267]
[1764043844131,0.40553733,88064.0,88063.0,0.00073267]
[1764043844332,0.0233407,88053.0,88044.0,0.01329]
[1764043844541,0.82633873,88053.0,88044.0,0.01329]
[1764043844742,0.82633873,88053.0,88052.0,0.05260443]
[1764043845039,0.82533873,88053.0,88052.0,0.0533371]
[1764043845840,0.82533873,88053.0,88052.0,0.02279302]
[1764043846040,0.82633873,88053.0,88052.0,0.04509302]
[1764043846534,0.82633873,88053.0,88052.0,0.00090302]
[1764043846734,0.82633873,88053.0,88052.0,0.02279302]
[1764043847839,0.37597803,88053.0,88052.0,0.04509302]
[1764043848039,0.55505803,88053.0,88052.0,0.04509302]
[1764043848335,0.55405803,88053.0,88052.0,0.04509302]
[1764043849828,0.19325803,88053.0,88052.0,0.04509302]
[1764043850028,0.00219803,88053.0,88052.0,0.04509302]
[1764043850246,0.00818803,88053.0,88052.0,0.04509302]
[1764043850727,0.01417803,88053.0,88052.0,0.04509302]
[1764043852234,0.00219803,88053.0,88052.0,0.04509302]
[1764043852530,0.01355873,88053.0,88052.0,0.04509302]
[1764043854145,0.00219803,88053.0,88052.0,0.04509302]
[1764043856946,0.01417803,88053.0,88052.0,0.04509302]
[1764043857241,0.30417803,88053.0,88052.0,0.02279302]
[1764043857441,0.30417803,88053.0,88052.0,0.04610302]
[1764043859348,0.30417803,88053.0,88052.0,0.08685526]
[1764043859650,0.30417803,88053.0,88052.0,0.06354526]
[1764043859846,0.30417803,88053.0,88052.0,0.04165526]
[1764043860542,0.30417803,88053.0,88052.0,0.06419526]
[1764043861250,0.00219803,88053.0,88052.0,0.04675302]
[1764043861437,0.1422134,88062.0,88061.0,0.04585]
[1764043861636,0.00616035,88069.0,88068.0,0.0338988]
[1764043861841,0.00835838,88069.0,88068.0,0.07115147]
[1764043862248,0.00236838,88069.0,88068.0,0.07115147]
[1764043862644,0.00236838,88069.0,88068.0,0.11189526]
[1764043862844,0.00017035,88069.0,88068.0,0.07115147]
[1764043863455,0.3608,88083.0,88082.0,0.057207]
[1764043863751,0.36696,88083.0,88082.0,0.05793967]
[1764043863951,0.36915803,88083.0,88082.0,0.05793967]
[1764043864139,0.37531803,88083.0,88082.0,0.07709858]
[1764043865052,0.37531803,88083.0,88082.0,0.04658267]
[1764043867050,0.76531803,88083.0,88082.0,0.04658267]
[1764043867255,0.52531803,88083.0,88082.0,0.04658267]
[1764043868647,0.37531803,88083.0,88082.0,0.05793967]
[1764043868853,0.37531803,88083.0,88082.0,0.04658267]
[1764043869948,0.80531803,88083.0,88082.0,0.04658267]
[1764043871154,0.49531803,88083.0,88082.0,0.04658267]
[1764043872764,0.37531803,88083.0,88082.0,0.04658267]
[1764043873655,0.37531803,88083.0,88082.0,0.05793967]
[1764043874056,0.0113557,88093.0,88085.0,0.0559566]
[1764043874361,0.01480185,88086.0,88085.0,0.40613267]
[1764043874559,0.44480185,88086.0,88085.0,0.40613267]
[1764043876864,0.44480185,88086.0,88085.0,0.38432267]
[1764043877062,0.44480185,88086.0,88085.0,0.00073267]
[1764043878961,0.44480185,88086.0,88071.0,0.04070693]
[1764043878962,0.01232,88075.0,88074.0,0.00017035]
[1764043879158,0.66439803,88075.0,88074.0,0.00017035]
[1764043879558,0.99439803,88075.0,88074.0,0.00090302]
[1764043879759,0.99439803,88075.0,88062.0,0.036]
[1764043879760,0.01232,88063.0,88062.0,0.036]
[1764043879964,0.36451803,88063.0,88062.0,0.05854267]
[1764043885858,0.00835803,88063.0,88062.0,0.05854267]
[1764043886063,0.00219803,88063.0,88062.0,0.05854267]
[1764043886970,0.00835803,88063.0,88062.0,0.05854267]
[1764043887172,0.01451803,88063.0,88062.0,0.05854267]
[1764043890978,0.00835803,88063.0,88062.0,0.05854267]
[1764043891177,0.00219803,88063.0,88062.0,0.05854267]
[1764043892469,0.0113586,88070.0,88069.0,0.0446]
[1764043892673,0.01355663,88070.0,88069.0,0.04533267]
[1764043894977,0.02587663,88070.0,88069.0,0.00073267]
[1764043895285,0.40587663,88070.0,88069.0,0.00073267]
[1764043895578,0.023679,88066.0,88065.0,0.03050296]
[1764043895780,0.83667703,88066.0,88065.0,0.03050296]
[1764043896276,0.83667703,88066.0,88065.0,0.03123563]
[1764043896471,0.83667703,88066.0,88065.0,0.05402563]
[1764043896678,0.01232,88065.0,88064.0,0.03050296]
[1764043896980,0.01232,88065.0,88054.0,0.00017035]
[1764043896981,0.01232,88057.0,88054.0,0.00017035]
[1764043897277,0.99443803,88057.0,88054.0,0.00017035]
[1764043899481,0.99443803,88057.0,88056.0,0.03721267]
[1764043900272,0.63363803,88057.0,88056.0,0.05902267]
[1764043900474,0.99443803,88057.0,88056.0,0.05902267]
[1764043900673,0.99443803,88057.0,88045.0,0.03050296]
[1764043900674,0.0105,88046.0,88045.0,0.03050296]
[1764043900977,0.021862,88043.0,88042.0,0.04488]
[1764043901284,0.19185803,88043.0,88042.0,0.04488]
[1764043901582,0.19185803,88043.0,88042.0,0.07537756]
[1764043901778,0.01269803,88043.0,88042.0,0.07537756]
[1764043901973,0.19193803,88043.0,88042.0,0.07537756]
[1764043902172,0.19193803,88043.0,88042.0,0.07637756]
[1764043902883,0.18668803,88043.0,88042.0,0.07637756]
[1764043903082,0.18668803,88043.0,88042.0,0.04588]
[1764043903377,0.00744803,88043.0,88042.0,0.04588]
[1764043905083,0.00744803,88043.0,88042.0,0.07637756]
[1764043907091,0.00744803,88043.0,88042.0,0.04588]
[1764043909488,0.39269803,88043.0,88042.0,0.04588]
[1764043910185,0.11269803,88043.0,88042.0,0.04588]
[1764043910780,0.11269803,88043.0,88042.0,0.07638163]
[1764043911281,0.30269803,88043.0,88042.0,0.07638163]
[1764043913386,0.30269803,88043.0,88042.0,0.02211322]
[1764043913687,0.30269803,88043.0,88034.0,0.00017035]
[1764043913688,0.021863,88035.0,88034.0,0.00017035]
[1764043913889,0.0218634,88032.0,88022.0,0.0406608]
[1764043914080,0.0218634,88032.0,88031.0,0.04497838]
[1764043914081,0.11406143,88032.0,88031.0,0.04497838]
[1764043914283,0.20330143,88032.0,88031.0,0.04497838]
[1764043915180,0.02306143,88032.0,88031.0,0.04497838]
[1764043915377,0.20130143,88032.0,88031.0,0.04497838]
[1764043915582,0.20130143,88032.0,88023.0,0.04083115]
[1764043915583,0.0218645,88024.0,88023.0,0.04566035]
[1764043915782,0.80386253,88024.0,88023.0,0.04566035]
[1764043915986,0.80386253,88024.0,88023.0,0.00017035]
[1764043916183,0.80286253,88024.0,88023.0,0.00017035]
[1764043916585,0.80296091,88024.0,88023.0,0.02278035]
[1764043916785,0.80296091,88024.0,88023.0,0.02378035]
[1764043917486,0.80296091,88024.0,88023.0,0.04710035]
[1764043918286,0.80296091,88024.0,88023.0,0.04610035]
[1764043918684,0.77296091,88024.0,88023.0,0.04610035]
[1764043918884,0.50296091,88024.0,88023.0,0.04610035]
[1764043919987,0.73296091,88024.0,88023.0,0.04610035]
[1764043920693,0.73296091,88024.0,88023.0,0.00017035]
[1764043921997,0.73496091,88024.0,88023.0,0.02278035]
[1764043923600,0.73496091,88024.0,88023.0,0.00017035]
[1764043924383,0.38396091,88024.0,88023.0,0.04610035]
[1764043924588,0.55483641,88024.0,88023.0,0.04610035]
[1764043926089,0.98483641,88024.0,88023.0,0.04610035]
[1764043927201,0.98483641,88024.0,88023.0,0.00017035]
[1764043928794,0.0218656,88015.0,88014.0,0.05915]
[1764043928985,0.01277871,88015.0,88014.0,0.05915]
[1764043929191,0.00227871,88015.0,88014.0,0.0705158]
[1764043929493,0.18155871,88015.0,88014.0,0.0705158]
[1764043930002,0.18155871,88015.0,88014.0,0.05915]
[1764043930598,0.18680871,88015.0,88014.0,0.05915]
[1764043930900,0.18155871,88015.0,88014.0,0.05915]
[1764043931598,0.19205871,88015.0,88014.0,0.05915]
[1764043935106,0.18155871,88015.0,88014.0,0.05915]
[1764043935900,6.8e-07,88015.0,88014.0,0.05915]
[1764043936200,0.14713951,88030.0,88029.0,0.04261]
[1764043936407,0.0220437,88030.0,88029.0,0.04261]
[1764043936597,0.02424173,88030.0,88029.0,0.04261]
[1764043938008,0.02524173,88030.0,88029.0,0.04261]
[1764043938598,0.02624173,88030.0,88029.0,0.04261]
[1764043939710,0.03760173,88030.0,88029.0,0.04261]
[1764043940210,0.03660173,88030.0,88029.0,0.04261]
[1764043941000,0.03560173,88030.0,88029.0,0.04261]
[1764043943116,0.03560173,88030.0,88029.0,0.08334775]
[1764043944016,0.44560173,88030.0,88029.0,0.08334775]
[1764043944609,0.44560173,88030.0,88029.0,0.04261]
[1764043945710,0.44560173,88030.0,88029.0,0.02118]
[1764043946017,0.0447641,88027.0,88026.0,0.03467]
[1764043946207,0.42696213,88027.0,88026.0,0.0561]
[1764043948620,0.41559803,88027.0,88026.0,0.0561]
[1764043948919,0.00219803,88027.0,88026.0,0.0561]
[1764043949418,0.00017035,88032.0,88031.0,0.0539736]
[1764043949608,0.3608,88047.0,88046.0,0.04261]
[1764043950126,0.044761,88052.0,88050.0,0.01349]
[1764043950419,0.03559803,88051.0,88050.0,0.0561]
[1764043953908,0.43559803,88051.0,88050.0,0.0561]
[1764043954614,0.10559803,88051.0,88050.0,0.0561]
[1764043957413,0.03559803,88051.0,88050.0,0.0561]
[1764043958414,0.00219803,88051.0,88050.0,0.0561]
[1764043959313,0.3608,88056.0,88055.0,0.0539705]
[1764043960118,0.00017035,88059.0,88055.0,0.0539705]
[1764043960119,0.00017035,88059.0,88058.0,0.0539701]
[1764043965121,0.45576838,88059.0,88058.0,0.04261]
[1764043966019,0.0334,88054.0,88053.0,0.40531]
[1764043966325,0.43695863,88054.0,88053.0,0.40531]
[1764043966523,0.00219803,88054.0,88053.0,0.40531]
[1764043967525,0.00017035,88059.0,88058.0,0.0558701]
[1764043968526,0.00236838,88059.0,88058.0,0.0558701]
[1764043969120,0.00236838,88059.0,88058.0,0.04451]
[1764043970524,0.01906838,88059.0,88058.0,0.04451]
[1764043970829,0.03576838,88059.0,88058.0,0.04451]
[1764043973126,0.00236838,88059.0,88058.0,0.04451]
[1764043973326,0.01906838,88059.0,88058.0,0.04451]
[1764043973521,0.03576838,88059.0,88058.0,0.04451]
[1764043974416,0.00236838,88059.0,88058.0,0.04451]
[1764043977423,0.00236838,88059.0,88058.0,0.07500764]
[1764043977623,0.00236838,88059.0,88058.0,0.04451]
[1764043977823,0.00017035,88059.0,88058.0,0.04451]
[1764043982932,0.00236838,88059.0,88058.0,0.04451]
[1764043983134,0.01906838,88059.0,88058.0,0.04451]
[1764043983334,0.00236838,88059.0,88058.0,0.04451]
[1764043984045,0.01906838,88059.0,88058.0,0.04451]
[1764043984836,0.41576838,88059.0,88058.0,0.04451]
[1764043986242,0.41576838,88059.0,88058.0,0.10568902]
[1764043987243,0.41576838,88059.0,88058.0,0.04451]
[1764043988244,0.10576838,88059.0,88058.0,0.04451]
[1764043990344,0.03576838,88059.0,88058.0,0.04451]
[1764043990549,0.33576838,88059.0,88058.0,0.04451]
[1764043990750,0.00236838,88059.0,88058.0,0.0558701]
[1764043991654,0.3608,88085.0,88065.0,0.05708]
[1764043991843,0.41,88077.0,88076.0,0.37435583]
[1764043992043,0.00028382,88086.0,88085.0,0.0113566]
[1764043992249,0.05784382,88086.0,88085.0,0.01355463]
[1764043992453,0.05784382,88086.0,88085.0,0.73515463]
[1764043994246,0.01407382,88086.0,88085.0,0.79608615]
[1764043994446,0.00028382,88086.0,88085.0,0.79608615]
[1764043994747,0.00028382,88086.0,88085.0,0.73515463]
[1764043994953,2e-08,88086.0,88085.0,0.73515463]
[1764043996352,2e-08,88086.0,88085.0,0.79601205]
[1764043996754,0.01379002,88086.0,88085.0,0.79601205]
[1764043997052,0.05756002,88086.0,88085.0,0.73515463]
[1764043997550,2e-08,88086.0,88085.0,0.73515463]
[1764043998151,0.04394035,88094.0,88093.0,0.0113556]
[1764043998344,0.05829267,88086.0,88085.0,0.3721566]
[1764043998545,0.05829267,88086.0,88085.0,0.73515463]
[1764044001957,0.00017035,88094.0,88093.0,0.0113556]
[1764044002148,0.00017035,88094.0,88093.0,0.37435363]
[1764044002546,0.01379,88110.0,88103.0,0.0113543]
[1764044002745,0.03526,88104.0,88103.0,0.37435233]
[1764044002946,0.05756,88104.0,88103.0,0.37435233]
[1764044004052,0.05856,88104.0,88103.0,0.37435233]
[1764044005058,0.05956,88104.0,88103.0,0.37435233]
[1764044007448,0.05856,88104.0,88103.0,0.37435233]
[1764044007651,0.05756,88104.0,88103.0,0.37435233]
[1764044013647,0.06964677,88104.0,88103.0,0.36299803]
[1764044019566,0.05829267,88104.0,88103.0,0.36299803]
[1764044022759,0.05829267,88104.0,88103.0,0.39337091]
[1764044022960,0.05756,88104.0,88103.0,0.36299803]
[1764044023861,0.01379,88104.0,88103.0,0.36299803]
[1764044024260,0.05929,88104.0,88103.0,0.36299803]
[1764044025168,0.01379,88104.0,88103.0,0.36299803]
[1764044026461,0.05929,88104.0,88103.0,0.36299803]
[1764044027478,0.06002267,88104.0,88103.0,0.36299803]
[1764044027673,0.06002267,88104.0,88103.0,0.40368527]
[1764044027971,0.06002267,88104.0,88103.0,0.36299803]
[1764044029674,0.06002267,88104.0,88103.0,0.42402576]
[1764044029876,0.06002267,88104.0,88103.0,0.36299803]
[1764044030790,0.01379,88110.0,88103.0,0.36299803]
[1764044030986,0.00017002,88112.0,88109.0,0.0113535]
[1764044031287,0.00017002,88112.0,88111.0,0.00219803]
[1764044031992,0.02257002,88112.0,88111.0,0.00219803]
[1764044032590,0.04567002,88112.0,88111.0,0.00219803]
[1764044033685,0.04567002,88112.0,88111.0,0.00319803]
[1764044036188,0.04567002,88112.0,88111.0,0.06412508]
[1764044036389,0.04567002,88112.0,88111.0,0.00319803]
[1764044037398,0.04567002,88112.0,88111.0,0.06411524]
[1764044037792,0.04567002,88112.0,88111.0,0.00319803]
[1764044039298,0.04640269,88112.0,88111.0,0.00319803]
[1764044039591,2e-08,88112.0,88111.0,0.00319803]
[1764044039899,0.01286,88125.0,88124.0,0.0113516]
[1764044040195,0.00028369,88126.0,88124.0,0.79603037]
[1764044040397,0.00028369,88126.0,88125.0,0.06088074]
[1764044040596,0.01393,88128.0,88126.0,0.0113513]
[1764044040898,0.01393,88128.0,88127.0,0.06307681]
[1764044041285,0.01393,88128.0,88127.0,0.00219803]
[1764044042091,0.03667,88128.0,88127.0,0.00219803]
[1764044042395,0.01393,88128.0,88127.0,0.00219803]
[1764044042696,0.01393,88128.0,88127.0,0.06307681]
[1764044043086,0.01393,88128.0,88127.0,0.00219803]
[1764044043286,0.05941,88128.0,88127.0,0.06300329]
[1764044043495,0.06014267,88128.0,88127.0,0.06300329]
[1764044043893,0.06014267,88128.0,88127.0,0.00219803]
[1764044044100,0.05941,88128.0,88127.0,0.00219803]
[1764044045196,0.01393,88128.0,88127.0,0.00219803]
[1764044045499,0.05941,88128.0,88127.0,0.06297747]
[1764044046201,0.05941,88128.0,88127.0,0.00219803]
[1764044047203,0.01393,88128.0,88127.0,0.00219803]
[1764044047693,0.05834,88146.0,88127.0,0.00219803]
[1764044047894,0.05834,88146.0,88145.0,0.7329489]
[1764044048100,0.05907267,88146.0,88145.0,0.79590535]
[1764044048304,0.05907267,88146.0,88145.0,0.73514693]
[1764044049205,0.05834,88146.0,88145.0,0.73514693]
[1764044049397,0.05834,88146.0,88145.0,0.72379803]
[1764044049398,0.05907267,88146.0,88145.0,0.72379803]
[1764044049789,0.05907267,88146.0,88145.0,0.75415794]
[1764044050104,0.05907267,88146.0,88145.0,0.72379803]
[1764044050498,0.05834,88146.0,88145.0,0.72379803]
[1764044054595,0.05907267,88146.0,88145.0,0.72379803]
[1764044056995,0.44907267,88146.0,88145.0,0.68879803]
[1764044057201,0.44907267,88146.0,88137.0,0.03138162]
[1764044057202,0.04521,88138.0,88137.0,0.03138162]
[1764044057406,0.04521,88138.0,88132.0,0.3608]
[1764044057407,0.0565604,88133.0,88132.0,0.3608]
[1764044057605,0.25729307,88133.0,88132.0,0.3608]
[1764044058104,0.05729307,88133.0,88132.0,0.3608]
[1764044058496,0.05729307,88133.0,88132.0,0.36399803]
[1764044059300,0.47729307,88133.0,88132.0,0.36399803]
[1764044059803,0.47729307,88133.0,88132.0,0.36499803]
[1764044060801,0.24729307,88133.0,88132.0,0.36499803]
[1764044061393,0.24729307,88133.0,88132.0,0.38650803]
[1764044061798,0.04594267,88133.0,88132.0,0.41931853]
[1764044064304,0.04594267,88133.0,88132.0,0.40796803]
[1764044064502,0.36097025,88141.0,88140.0,0.0674695]
[1764044064806,0.035627,88159.0,88158.0,0.05612]
[1764044065104,0.465627,88159.0,88158.0,0.00219803]
[1764044066210,0.466627,88159.0,88158.0,0.00219803]
[1764044066403,0.0356278,88153.0,88152.0,0.03466]
[1764044066597,0.4456278,88153.0,88152.0,0.00219803]
[1764044068215,0.8064278,88153.0,88152.0,0.00219803]
[1764044068715,0.02428,88151.0,88150.0,0.00017014]
[1764044068906,0.43428,88151.0,88150.0,0.00017014]
[1764044069511,0.43428,88151.0,88150.0,0.04314014]
[1764044069709,0.43428,88151.0,88150.0,0.02168014]
[1764044070012,0.43428,88151.0,88150.0,0.00017014]
[1764044072512,0.43428,88151.0,88150.0,0.00236817]
[1764044073099,0.4456281,88151.0,88150.0,0.00017014]
[1764044073507,0.43428,88151.0,88150.0,0.00017014]
[1764044073709,0.43428,88151.0,88150.0,0.01151834]
[1764044074103,0.41,88151.0,88150.0,0.05668637]
[1764044074309,0.02428,88156.0,88155.0,0.0543175]
[1764044074515,0.02428,88156.0,88155.0,0.05651553]
[1764044074817,0.00028356,88166.0,88164.0,0.0543164]
[1764044075008,0.00689981,88180.0,88179.0,0.0674645]
[1764044075316,0.00689981,88180.0,88179.0,0.43046253]
[1764044076416,0.00689981,88180.0,88179.0,0.77991803]
[1764044076417,0.02999561,88180.0,88179.0,0.77991803]
[1764044076607,0.02999561,88180.0,88179.0,0.39765803]
[1764044076803,0.02999561,88180.0,88179.0,0.41911803]
[1764044077213,0.38999561,88180.0,88179.0,0.39765803]
[1764044077415,0.38999561,88180.0,88179.0,0.37614803]
[1764044078418,0.38999561,88180.0,88179.0,0.41911803]
[1764044078419,0.02999561,88180.0,88179.0,0.41911803]
[1764044079009,0.45999561,88180.0,88179.0,0.37614803]
[1764044080218,0.45999561,88180.0,88179.0,0.39765803]
[1764044080415,0.43515561,88180.0,88179.0,0.43046253]
[1764044080623,0.00515561,88180.0,88179.0,0.43046253]
[1764044081721,0.00515561,88180.0,88179.0,0.79126253]
[1764044082422,0.39594,88198.0,88197.0,0.04479]
[1764044082609,0.39594,88198.0,88197.0,0.04698803]
[1764044083010,0.03514,88198.0,88197.0,0.04698803]
[1764044083410,0.0113413,88204.0,88200.0,0.0113416]
[1764044083614,0.1864813,88204.0,88203.0,0.04698803]
[1764044084521,0.1874813,88204.0,88203.0,0.04698803]
[1764044084820,0.17714,88204.0,88203.0,0.05832943]
[1764044085007,0.1884812,88204.0,88203.0,0.04698803]
[1764044085212,0.1874812,88204.0,88203.0,0.04698803]
[1764044085408,0.4284812,88204.0,88203.0,0.00219803]
[1764044086124,0.4274812,88204.0,88203.0,0.00219803]
[1764044086316,0.4294812,88204.0,88203.0,0.00219803]
[1764044088825,0.4294812,88204.0,88203.0,0.02413803]
[1764044089624,0.4294812,88204.0,88203.0,0.00219803]
[1764044089815,0.4294812,88204.0,88203.0,0.02413803]
[1764044090523,0.4294812,88204.0,88203.0,0.00219803]
[1764044090717,0.4294812,88204.0,88173.0,0.06523225]
[1764044090718,0.03514,88190.0,88184.0,0.01352]
[1764044090914,0.41514,88190.0,88189.0,0.02211014]
[1764044091119,0.41514,88190.0,88189.0,0.02430817]
[1764044091320,0.41514,88190.0,88189.0,0.04715817]
[1764044091916,0.03614,88190.0,88189.0,0.04715817]
[1764044092423,0.44614,88190.0,88189.0,0.04715817]
[1764044092822,0.44714,88190.0,88189.0,0.04715817]
[1764044093624,0.18714,88190.0,88189.0,0.04715817]
[1764044094127,0.39714,88190.0,88189.0,0.04715817]
[1764044095827,0.39714,88190.0,88189.0,0.00236817]
[1764044097527,0.39714,88190.0,88189.0,0.02421817]
[1764044098423,0.39714,88190.0,88189.0,0.04581817]
[1764044099630,0.39614,88190.0,88189.0,0.04581817]
[1764044099821,0.39514,88190.0,88189.0,0.04581817]
[1764044100321,0.39514,88190.0,88189.0,0.00017014]
[1764044100515,0.39514,88190.0,88179.0,0.3608]
[1764044100516,0.0464843,88180.0,88179.0,0.3608]
[1764044100727,0.6762843,88180.0,88179.0,0.3608]
[1764044101430,0.6762843,88180.0,88179.0,0.36299803]
[1764044103031,0.6762843,88180.0,88179.0,0.3608]
[1764044103430,0.0464854,88172.0,88171.0,0.00017014]
[1764044103623,0.8572854,88172.0,88171.0,0.00017014]
[1764044110837,0.6172854,88172.0,88171.0,0.00017014]